fUST/lending_fUST_20240515
["ID","MTS","AMOUNT","RATE_DAILY","PERIOD"]
[327070840,1715778642519,-500.0,0.00019999,2]
[327070842,1715778642530,-500.0,0.00019999,2]
[327070844,1715778642541,-499.95393407,0.0002,2]
[327070846,1715778642551,-154.94437027,0.0002,2]
[327070848,1715778642561,-652.25349094,0.0002,2]
[327070850,1715778642574,-912.6201658,0.0002,2]
[327070853,1715778642585,-9196.10239892,0.0002,2]
[327070855,1715778642609,-11036.96800228,0.0002,2]
[327070856,1715778642631,-803.50534785,0.0002,2]
[327070887,1715778644053,-2865.0,0.0002,2]
[327070889,1715778644065,-36080.20286279,0.0002,2]
[327071268,1715778647264,-2874.5013947,0.00019999,2]
[327071270,1715778647276,-3176.57046827,0.00019999,2]
[327071272,1715778647285,-435.21040694,0.00019999,2]
[327071275,1715778647297,-746.4,0.00019999,2]
[327071598,1715778662193,803.06229878,9.999e-05,2]
[327071599,1715778676108,154.82968734,9.999e-05,2]
[327071600,1715778682351,292.60916471,9.999e-05,2]
[327071601,1715778683154,1094.42573133,9.999e-05,2]
[327071602,1715778698152,1715.90485065,9.999e-05,2]
[327071603,1715778709499,2014.79452069,9.999e-05,2]
[327071604,1715778717421,154.82968734,9.999e-05,2]
[327071605,1715778718833,154.82968734,9.999e-05,2]
[327071606,1715778736071,1361.53471429,0.00018,2]
[327071607,1715778747452,2457.52046253,9.999e-05,2]
[327071609,1715778885924,444.8132716,0.00017832,2]
[327071610,1715778904566,1000.0,0.00025,60]
[327071611,1715778960677,346.9296,0.00017684,2]
[327071612,1715779082966,224.38826362,0.00017684,2]
[327071613,1715779147214,1551.60855196,0.00017684,2]
[327071614,1715779201194,154.82968734,0.00017684,2]
[327071615,1715779223101,155.05539799,0.00017684,2]
[327071617,1715779255343,1349.86150143,9.999e-05,2]
[327071618,1715779268757,282.01712164,0.00017684,2]
[327071619,1715779270902,156.3,0.00017684,2]
[327071621,1715779298454,241.64,0.00010959,2]
[327071622,1715779309008,201.37,0.00010959,2]
[327071623,1715779313286,262.09871976,9.999e-05,2]
[327071624,1715779313748,771.51166085,0.000138,2]
[327071625,1715779319801,167.8,0.00010959,2]
[327071626,1715779330603,839.05,0.00010959,2]
[327071627,1715779337934,273.37336231,9.9e-05,2]
[327071628,1715779341803,803.06229878,9.999e-05,2]
[327071629,1715779343919,19241.62943188,0.00010959,2]
[327071630,1715779346601,273.37336231,9.9e-05,2]
[327071631,1715779355468,273.37336231,9.9e-05,2]
[327071632,1715779363824,273.37336231,9.9e-05,2]
[327071633,1715779381750,24900.0,0.00017681,2]
[327071635,1715779400066,9658.97501648,9.9e-05,2]
[327071636,1715779439849,173.4648,0.00017681,2]
[327071679,1715779568097,2261.2386177,0.00017543,2]
[327071684,1715779612283,3000.0,0.00017681,2]
[327071724,1715779766111,-2399.32123468,0.00018434,2]
[327071725,1715779766132,-262.09871976,0.00018435,2]
[327071726,1715779766153,-1349.86150143,0.00018435,2]
[327071727,1715779766174,-29322.08155042,0.00018435,2]
[327071728,1715779766201,-4109.95536564,0.00018435,2]
[327071729,1715779773204,-20727.567,0.00018435,2]
[327071748,1715779835245,-17007.31705089,0.00018433,2]
[327071787,1715779835625,-40565.87703249,0.00018433,2]
[327071789,1715779835638,-181.72268756,0.00018434,2]
[327071791,1715779835653,-10445.91088101,0.00018434,2]
[327071794,1715779835669,-59372.20880014,0.00018434,2]
[327071796,1715779835685,-17.2960482,0.00018441,2]
[327071800,1715779835702,-282.49185002,0.00018441,2]
[327071803,1715779835716,-929.18051879,0.00018443,2]
[327071806,1715779835729,-553.46164976,0.00018446,2]
[327071809,1715779835744,-154.82968734,0.00018546,2]
[327071811,1715779835756,-7916.60298206,0.00018547,2]
[327071813,1715779835769,-1031.83456577,0.00018555,2]
[327071816,1715779835784,-203.28596128,0.00018555,2]
[327071818,1715779835801,-336.66549788,0.00018561,2]
[327071820,1715779835814,-589.94336159,0.00018563,2]
[327071822,1715779835827,-485.80531512,0.00018899,2]
[327072181,1715779839137,-1349.86150143,0.00018432,2]
[327072182,1715779839151,-4389.42529719,0.00018899,2]
[327072438,1715779841352,-2686.92892201,0.00018898,2]
[327072441,1715779841365,-4180.67232296,0.00018899,2]
[327072444,1715779841384,-191.14123682,0.00018899,2]
[327072447,1715779841396,-1043.6756246,0.000189,2]
[327072450,1715779841409,-553.46164974,0.00019116,2]
[327072453,1715779841421,-500.0,0.00019178,2]
[327072458,1715779841436,-500.0,0.00019178,2]
[327072460,1715779841446,-500.0,0.00019178,2]
[327072462,1715779841455,-343.11233688,0.00019178,2]
[327072464,1715779841465,-373.5565918,0.00019178,2]
[327072466,1715779841474,-418.80359354,0.00019178,2]
[327072468,1715779841483,-423.82112444,0.00019178,2]
[327072491,1715779841731,-76.17887556,0.00019178,2]
[327072492,1715779841756,-500.0,0.00019178,2]
[327072493,1715779841767,-214.84614445,0.00019178,2]
[327072495,1715779841779,-285.15385555,0.00019178,2]
[327072497,1715779841791,-500.0,0.00019178,2]
[327072499,1715779841801,-500.0,0.00019178,2]
[327072501,1715779841813,-500.0,0.00019178,2]
[327072503,1715779841822,-500.0,0.00019178,2]
[327072505,1715779841833,-611.07223241,0.00019178,2]
[327072507,1715779841843,-471.84649975,0.00019178,2]
[327072509,1715779841852,-180.637194,0.00019178,2]
[327072511,1715779841862,-929.18051875,0.00019708,2]
[327072513,1715779841871,-416.7728428,0.00019737,2]
[327072515,1715779841882,-553.46164974,0.00019787,2]
[327072517,1715779841892,-2744.93316216,0.000199,2]
[327072519,1715779841901,-150.0,0.00019989,2]
[327072521,1715779841911,-294.13961343,0.00019997,2]
[327072523,1715779841921,-156.32882916,0.00019997,2]
[327072525,1715779841933,-1493.78708353,0.00019998,2]
[327072527,1715779841944,-262.09871976,0.00019998,2]
[327072529,1715779841954,-698.13723762,0.00019999,2]
[327072531,1715779841963,-9186.73214027,0.0002,3]
[327072533,1715779841976,-333.4084,0.0002,3]
[327072535,1715779841987,-501.485992,0.0002,3]
[327072778,1715779844418,-2017.27314133,0.0002,3]
[327072779,1715779844427,-1149.05537026,0.0002,2]
[327072970,1715779847583,-1254.75,0.0002,2]
[327072973,1715779847594,-9444.65542532,0.0002,2]
[327072975,1715779847604,-208.30870932,0.0002,2]
[327072977,1715779847614,-67994.83298697,0.0002,2]
[327072979,1715779847624,-1564.87365674,0.0002,2]
[327072981,1715779847633,-168.11374588,0.0002,2]
[327072982,1715779847642,-500.0,0.0002,2]
[327072985,1715779847652,-269.9970248,0.0002,2]
[327072987,1715779847662,-553.46164974,0.00020457,2]
[327072989,1715779847671,-7599.93649449,0.000209,2]
[327072990,1715779847680,-162.73375235,0.00020909,2]
[327072993,1715779847692,-197.1919696,0.00020909,2]
[327072995,1715779847706,-219.9805932,0.00020909,2]
[327072997,1715779847716,-293.15286899,0.00020909,2]
[327072999,1715779847726,-317.41968162,0.00020909,2]
[327073001,1715779847735,-613.77482028,0.00020909,2]
[327073003,1715779847745,-200.0,0.00020909,2]
[327073005,1715779847754,-1094.28810056,0.00020909,2]
[327073007,1715779847764,-1797.80052194,0.00020909,2]
[327073009,1715779847774,-1000.0,0.00020949,2]
[327073011,1715779847784,-929.18051875,0.00020973,2]
[327073013,1715779847800,-234.73806196,0.00020998,2]
[327073015,1715779847811,-364.02798035,0.00020998,2]
[327073017,1715779847820,-1580.00719847,0.00020998,2]
[327073019,1715779847832,-156.97009696,0.00020998,2]
[327073021,1715779847842,-469.25932685,0.00020998,2]
[327073023,1715779847852,-242.48205614,0.00020998,2]
[327073025,1715779847861,-186.39835571,0.00020998,2]
[327073027,1715779847871,-940.45532708,0.00020998,2]
[327073029,1715779847880,-1332.42728557,0.00020998,2]
[327073031,1715779847890,-157.22766132,0.00020998,2]
[327073033,1715779847900,-163.09702072,0.00020998,2]
[327073035,1715779847910,-531.53142363,0.00020998,2]
[327073037,1715779847920,-2067.00365672,0.00020999,2]
[327073039,1715779847929,-14110.22083234,0.00021,3]
[327073041,1715779847938,-149915.88588136,0.00021,2]
[327073042,1715779847951,-408.5018068,0.00021096,2]
[327073045,1715779847962,-553.46164974,0.00021127,2]
[327073047,1715779847974,-1115.4941096,0.00021227,2]
[327073049,1715779847985,-1813.903104,0.000214,2]
[327073051,1715779847995,-1000.0,0.0002142,2]
[327073053,1715779848005,-1000.0,0.0002147,2]
[327073055,1715779848015,-1000.0,0.00021533,2]
[327073057,1715779848025,-1000.0,0.00021554,2]
[327073059,1715779848035,-1000.0,0.0002156,2]
[327073061,1715779848044,-1000.0,0.00021593,2]
[327073063,1715779848054,-1000.0,0.00021613,2]
[327073065,1715779848063,-1000.0,0.00021675,2]
[327073067,1715779848073,-3985.81821828,0.0002189,2]
[327073069,1715779848082,-500.0,0.000219,2]
[327073071,1715779848092,-668.16,0.000219,2]
[327073073,1715779848102,-281.0,0.000219,2]
[327073075,1715779848111,-1000.0,0.000219,2]
[327073077,1715779848121,-155.58429438,0.00021915,2]
[327073079,1715779848131,-154.84856643,0.00021915,2]
[327073081,1715779848141,-190.37138719,0.00021915,2]
[327073084,1715779848152,-228.67053012,0.00021915,2]
[327073085,1715779848162,-260.4581665,0.00021916,2]
[327073088,1715779848172,-286.80360623,0.00021916,2]
[327073090,1715779848184,-500.0,0.00021917,2]
[327073092,1715779848197,-500.0,0.00021917,2]
[327073094,1715779848207,-500.0,0.00021917,2]
[327073096,1715779848217,-499.99611016,0.00021917,2]
[327073098,1715779848227,-580.46350975,0.00021917,2]
[327073099,1715779848236,-500.0,0.00021917,2]
[327073101,1715779848245,-500.0,0.00021917,2]
[327073103,1715779848255,-500.0,0.00021917,2]
[327073105,1715779848264,-580.52,0.00021917,2]
[327073107,1715779848274,-500.0,0.00021917,2]
[327073109,1715779848283,-500.0,0.00021917,2]
[327073111,1715779848292,-500.0,0.00021917,2]
[327073113,1715779848301,-500.0,0.00021917,2]
[327073115,1715779848311,-500.0,0.00021917,2]
[327073117,1715779848320,-1000.0,0.00021917,2]
[327073119,1715779848330,-500.0,0.00021917,2]
[327073121,1715779848339,-643.42819546,0.00021917,2]
[327073123,1715779848348,-500.0,0.00021917,2]
[327073125,1715779848358,-500.0,0.00021917,2]
[327073128,1715779848368,-1228.64,0.00021917,2]
[327073130,1715779848377,-500.0,0.00021917,2]
[327073131,1715779848386,-1000.0,0.00021917,2]
[327073134,1715779848396,-500.0,0.00021917,2]
[327073135,1715779848405,-151.0,0.00021917,2]
[327073138,1715779848414,-151.0,0.00021917,2]
[327073139,1715779848423,-151.0,0.00021917,2]
[327073141,1715779848433,-151.0,0.00021917,2]
[327073144,1715779848447,-151.0,0.00021917,2]
[327073146,1715779848458,-500.0,0.00021917,2]
[327073148,1715779848467,-500.0,0.00021917,2]
[327073150,1715779848476,-2075.46,0.00021917,2]
[327073151,1715779848485,-500.0,0.00021917,2]
[327073153,1715779848494,-500.0,0.00021917,2]
[327073155,1715779848503,-500.0,0.00021917,2]
[327073157,1715779848512,-500.0,0.00021917,2]
[327073159,1715779848521,-500.0,0.00021917,2]
[327073161,1715779848530,-500.0,0.00021917,2]
[327073163,1715779848539,-300.0,0.00021917,2]
[327073165,1715779848548,-511.85063288,0.00021917,2]
[327073167,1715779848557,-500.0,0.00021917,2]
[327073169,1715779848567,-500.0,0.00021917,2]
[327073171,1715779848576,-313.73169813,0.00021917,2]
[327073172,1715779848585,-504.02315928,0.00021917,2]
[327073173,1715779848595,-500.0,0.00021917,2]
[327073174,1715779848604,-500.0,0.00021917,2]
[327073175,1715779848613,-500.0,0.00021917,2]
[327073176,1715779848622,-500.0,0.00021917,2]
[327073177,1715779848632,-1030.54,0.00021917,2]
[327073178,1715779848641,-500.0,0.00021917,2]
[327073179,1715779848650,-500.0,0.00021917,2]
[327073180,1715779848659,-393.78231505,0.00021917,2]
[327073181,1715779848668,-500.0,0.00021917,2]
[327073182,1715779848677,-500.0,0.00021917,2]
[327073183,1715779848687,-601.83666588,0.00021917,2]
[327073184,1715779848700,-421.45599634,0.00021917,2]
[327073185,1715779848709,-737.75,0.00021917,2]
[327073186,1715779848718,-500.0,0.00021917,2]
[327073188,1715779848727,-1028.82,0.00021917,2]
[327073190,1715779848737,-648.13,0.00021917,2]
[327073192,1715779848746,-334.03125512,0.00021917,2]
[327073194,1715779848755,-500.0,0.00021917,2]
[327073196,1715779848764,-500.0,0.00021917,2]
[327073198,1715779848774,-2241.54,0.00021917,2]
[327073200,1715779848784,-502.25,0.00021917,2]
[327073202,1715779848799,-500.0,0.00021917,2]
[327073204,1715779848808,-500.0,0.00021917,2]
[327073206,1715779848817,-500.0,0.00021917,2]
[327073208,1715779848827,-500.0,0.00021917,2]
[327073210,1715779848837,-500.0,0.00021917,2]
[327073212,1715779848846,-500.0,0.00021917,2]
[327073214,1715779848855,-500.0,0.00021917,2]
[327073216,1715779848864,-752.14,0.00021917,2]
[327073218,1715779848877,-585.04,0.00021917,2]
[327073219,1715779848887,-500.0,0.00021917,2]
[327073221,1715779848896,-500.0,0.00021917,2]
[327073223,1715779848905,-500.0,0.00021917,2]
[327073225,1715779848915,-500.0,0.00021917,2]
[327073227,1715779848924,-521.51,0.00021917,2]
[327073228,1715779848934,-500.0,0.00021917,2]
[327073230,1715779848947,-500.0,0.00021917,2]
[327073232,1715779848956,-500.0,0.00021917,2]
[327073234,1715779848966,-500.0,0.00021917,2]
[327073236,1715779848975,-500.0,0.00021917,2]
[327073238,1715779848985,-500.0,0.00021917,2]
[327073239,1715779848994,-500.0,0.00021917,2]
[327073241,1715779849004,-677.45,0.00021917,2]
[327073243,1715779849013,-500.0,0.00021917,2]
[327073245,1715779849023,-158.21638616,0.00021917,2]
[327073246,1715779849032,-500.79557238,0.00021917,2]
[327073247,1715779849041,-151.0,0.00021917,2]
[327073248,1715779849051,-151.0,0.00021917,2]
[327073249,1715779849060,-502.31790034,0.00021917,2]
[327073250,1715779849070,-500.0,0.00021917,2]
[327073251,1715779849079,-500.0,0.00021917,2]
[327073252,1715779849088,-500.0,0.00021917,2]
[327073256,1715779849253,-500.0,0.00021917,2]
[327073258,1715779849263,-500.0,0.00021917,2]
[327073260,1715779849275,-878.46,0.00021917,2]
[327073262,1715779849285,-500.0,0.00021917,2]
[327073264,1715779849294,-500.0,0.00021917,2]
[327073266,1715779849303,-500.0,0.00021917,2]
[327073267,1715779849312,-244.42511372,0.00021917,2]
[327073269,1715779849322,-243.30009847,0.00021917,2]
[327073270,1715779849333,-151.0,0.00021917,2]
[327073271,1715779849343,-500.0,0.00021917,2]
[327073272,1715779849351,-500.0,0.00021917,2]
[327073273,1715779849361,-500.0,0.00021917,2]
[327073274,1715779849370,-503.69691383,0.00021917,2]
[327073275,1715779849379,-267.14875389,0.00021917,2]
[327073276,1715779849388,-500.0,0.00021917,2]
[327073277,1715779849397,-500.0,0.00021917,2]
[327073278,1715779849407,-500.0,0.00021917,2]
[327073279,1715779849416,-500.0,0.00021917,2]
[327073280,1715779849427,-501.10201678,0.00021917,2]
[327073281,1715779849436,-500.0,0.00021917,2]
[327073283,1715779849448,-500.0,0.00021917,2]
[327073285,1715779849457,-502.33216634,0.00021917,2]
[327073286,1715779849473,-500.0,0.00021917,2]
[327073287,1715779849483,-500.0,0.00021917,2]
[327073288,1715779849492,-500.0,0.00021917,2]
[327073289,1715779849502,-500.0,0.00021917,2]
[327073290,1715779849511,-500.0,0.00021917,2]
[327073291,1715779849520,-763.59,0.00021917,2]
[327073293,1715779849529,-1615.84,0.00021917,2]
[327073295,1715779849539,-500.31130539,0.00021917,2]
[327073297,1715779849548,-500.0,0.00021917,2]
[327073299,1715779849557,-500.0,0.00021917,2]
[327073300,1715779849566,-500.0,0.00021917,2]
[327073301,1715779849576,-500.0,0.00021917,2]
[327073302,1715779849585,-500.0,0.00021917,2]
[327073303,1715779849594,-669.08,0.00021917,2]
[327073304,1715779849604,-747.05,0.00021917,2]
[327073305,1715779849614,-1078.64,0.00021917,2]
[327073306,1715779849623,-500.0,0.00021917,2]
[327073307,1715779849632,-500.0,0.00021917,2]
[327073308,1715779849641,-500.0,0.00021917,2]
[327073309,1715779849650,-187.40076566,0.00021917,2]
[327073310,1715779849660,-500.0,0.00021917,2]
[327073311,1715779849670,-521.43,0.00021917,2]
[327073312,1715779849680,-500.0,0.00021917,2]
[327073313,1715779849689,-205.54634316,0.00021917,2]
[327073314,1715779849701,-500.0,0.00021917,2]
[327073315,1715779849710,-500.0,0.00021917,2]
[327073316,1715779849719,-500.0,0.00021917,2]
[327073318,1715779849728,-500.0,0.00021917,2]
[327073319,1715779849737,-620.48,0.00021917,2]
[327073321,1715779849747,-500.0,0.00021917,2]
[327073324,1715779849756,-500.0,0.00021917,2]
[327073325,1715779849765,-500.0,0.00021917,2]
[327073327,1715779849774,-500.0,0.00021917,2]
[327073329,1715779849783,-503.14216664,0.00021917,2]
[327073332,1715779849798,-500.0,0.00021917,2]
[327073334,1715779849808,-500.0,0.00021917,2]
[327073336,1715779849817,-500.0,0.00021917,2]
[327073338,1715779849826,-3079.99,0.00021917,2]
[327073339,1715779849835,-500.0,0.00021917,2]
[327073342,1715779849846,-500.0,0.00021917,2]
[327073344,1715779849856,-759.56,0.00021917,2]
[327073346,1715779849865,-500.0,0.00021917,2]
[327073348,1715779849874,-500.0,0.00021917,2]
[327073350,1715779849883,-500.0,0.00021917,2]
[327073352,1715779849895,-1458.97,0.00021917,2]
[327073354,1715779849905,-858.42,0.00021917,2]
[327073355,1715779849914,-509.90363105,0.00021917,2]
[327073357,1715779849923,-500.0,0.00021917,2]
[327073359,1715779849932,-500.0,0.00021917,2]
[327073361,1715779849941,-500.0,0.00021917,2]
[327073363,1715779849952,-500.0,0.00021917,2]
[327073365,1715779849962,-3916.77,0.00021917,2]
[327073367,1715779849971,-503.40870773,0.00021917,2]
[327073368,1715779849981,-2919.59,0.00021917,2]
[327073370,1715779849992,-751.48,0.00021917,2]
[327073372,1715779850001,-500.0,0.00021917,2]
[327073373,1715779850010,-500.0,0.00021917,2]
[327073374,1715779850019,-500.0,0.00021917,2]
[327073375,1715779850028,-500.0,0.00021917,2]
[327073376,1715779850038,-500.0,0.00021917,2]
[327073377,1715779850047,-1362.43,0.00021917,2]
[327073378,1715779850055,-500.0,0.00021917,2]
[327073380,1715779850065,-500.0,0.00021917,2]
[327073382,1715779850074,-921.37,0.00021917,2]
[327073384,1715779850083,-640.10833197,0.00021917,2]
[327073386,1715779850092,-332.85847576,0.00021917,2]
[327073388,1715779850101,-500.0,0.00021917,2]
[327073389,1715779850111,-500.0,0.00021917,2]
[327073391,1715779850120,-841.0,0.00021917,2]
[327073393,1715779850130,-500.0,0.00021917,2]
[327073395,1715779850139,-566.07,0.00021917,2]
[327073397,1715779850148,-500.0,0.00021917,2]
[327073399,1715779850157,-500.0,0.00021917,2]
[327073400,1715779850168,-500.0,0.00021917,2]
[327073402,1715779850177,-500.0,0.00021917,2]
[327073403,1715779850187,-500.0,0.00021917,2]
[327073404,1715779850199,-500.0,0.00021917,2]
[327073405,1715779850208,-500.0,0.00021917,2]
[327073406,1715779850216,-500.0,0.00021917,2]
[327073407,1715779850225,-500.0,0.00021917,2]
[327073408,1715779850234,-500.0,0.00021917,2]
[327073410,1715779850243,-2526.98,0.00021917,2]
[327073411,1715779850252,-1144.21,0.00021917,2]
[327073412,1715779850262,-500.0,0.00021917,2]
[327073413,1715779850271,-858.31,0.00021917,2]
[327073414,1715779850280,-500.0,0.00021917,2]
[327073415,1715779850289,-749.52,0.00021917,2]
[327073416,1715779850299,-471.63683257,0.00021917,2]
[327073417,1715779850308,-244.22158648,0.00021917,2]
[327073418,1715779850317,-609.31606387,0.00021917,2]
[327073419,1715779850327,-884.28,0.00021917,2]
[327073420,1715779850337,-624.78,0.00021917,2]
[327073421,1715779850346,-1417.09,0.00021917,2]
[327073422,1715779850355,-530.23,0.00021917,2]
[327073423,1715779850364,-500.0,0.00021917,2]
[327073424,1715779850373,-500.0,0.00021917,2]
[327073425,1715779850382,-500.0,0.00021917,2]
[327073426,1715779850391,-186.420827,0.00021917,2]
[327073427,1715779850400,-500.0,0.00021917,2]
[327073428,1715779850410,-822.13,0.00021917,2]
[327073429,1715779850419,-186.420827,0.00021917,2]
[327073430,1715779850429,-186.420827,0.00021917,2]
[327073431,1715779850439,-186.420827,0.00021917,2]
[327073432,1715779850453,-186.420827,0.00021917,2]
[327073433,1715779850462,-186.420827,0.00021917,2]
[327073434,1715779850471,-500.0,0.00021917,2]
[327073435,1715779850480,-500.0,0.00021917,2]
[327073436,1715779850489,-1519.76,0.00021917,2]
[327073437,1715779850498,-186.420827,0.00021917,2]
[327073438,1715779850507,-186.420827,0.00021917,2]
[327073439,1715779850516,-1011.98,0.00021917,2]
[327073440,1715779850524,-186.420827,0.00021917,2]
[327073441,1715779850533,-186.420827,0.00021917,2]
[327073442,1715779850543,-500.0,0.00021917,2]
[327073443,1715779850554,-151.0,0.00021917,2]
[327073444,1715779850563,-151.0,0.00021917,2]
[327073445,1715779850573,-151.0,0.00021917,2]
[327073446,1715779850582,-151.0,0.00021917,2]
[327073447,1715779850591,-151.0,0.00021917,2]
[327073448,1715779850600,-912.21,0.00021917,2]
[327073449,1715779850613,-500.0,0.00021917,2]
[327073450,1715779850623,-151.0,0.00021917,2]
[327073451,1715779850632,-151.0,0.00021917,2]
[327073452,1715779850642,-151.0,0.00021917,2]
[327073453,1715779850653,-151.0,0.00021917,2]
[327073454,1715779850664,-500.0,0.00021917,2]
[327073455,1715779850674,-1069.27,0.00021917,2]
[327073456,1715779850683,-153.494344,0.00021917,2]
[327073457,1715779850696,-702.86,0.00021917,2]
[327073458,1715779850705,-500.0,0.00021917,2]
[327073459,1715779850716,-500.0,0.00021917,2]
[327073460,1715779850725,-500.0,0.00021917,2]
[327073461,1715779850735,-500.0,0.00021917,2]
[327073462,1715779850746,-500.0,0.00021917,2]
[327073463,1715779850755,-500.0,0.00021917,2]
[327073464,1715779850764,-1644.55,0.00021917,2]
[327073465,1715779850774,-500.0,0.00021917,2]
[327073466,1715779850784,-500.0,0.00021917,2]
[327073467,1715779850796,-500.0,0.00021917,2]
[327073468,1715779850809,-500.0,0.00021917,2]
[327073469,1715779850819,-500.0,0.00021917,2]
[327073470,1715779850828,-553.64,0.00021917,2]
[327073471,1715779850839,-528.66,0.00021917,2]
[327073472,1715779850849,-1508.75,0.00021917,2]
[327073473,1715779850858,-599.11,0.00021917,2]
[327073474,1715779850868,-1278.31,0.00021917,2]
[327073475,1715779850879,-500.0,0.00021917,2]
[327073476,1715779850890,-500.0,0.00021917,2]
[327073477,1715779850899,-500.0,0.00021917,2]
[327073478,1715779850909,-500.0,0.00021917,2]
[327073479,1715779850919,-500.0,0.00021917,2]
[327073480,1715779850929,-500.0,0.00021917,2]
[327073481,1715779850939,-500.0,0.00021917,2]
[327073482,1715779850955,-500.0,0.00021917,2]
[327073483,1715779850964,-699.25,0.00021917,2]
[327073484,1715779850975,-444.05047531,0.00021917,2]
[327073485,1715779850984,-3289.16,0.00021917,2]
[327073486,1715779850994,-500.0,0.00021917,2]
[327073487,1715779851003,-718.47,0.00021917,2]
[327073488,1715779851012,-380.25761437,0.00021917,2]
[327073489,1715779851022,-500.0,0.00021917,2]
[327073490,1715779851032,-500.0,0.00021917,2]
[327073491,1715779851041,-3422.3,0.00021917,2]
[327073492,1715779851051,-676.14,0.00021917,2]
[327073493,1715779851061,-151.0,0.00021917,2]
[327073494,1715779851070,-151.0,0.00021917,2]
[327073495,1715779851079,-1052.96,0.00021917,2]
[327073496,1715779851088,-151.0,0.00021917,2]
[327073497,1715779851098,-151.0,0.00021917,2]
[327073498,1715779851108,-809.92,0.00021917,2]
[327073499,1715779851117,-500.0,0.00021917,2]
[327073500,1715779851127,-790.45,0.00021917,2]
[327073501,1715779851136,-500.0,0.00021917,2]
[327073502,1715779851145,-1029.72,0.00021917,2]
[327073503,1715779851154,-1335.15,0.00021917,2]
[327073504,1715779851163,-500.0,0.00021917,2]
[327073505,1715779851173,-580.86,0.00021917,2]
[327073506,1715779851182,-500.0,0.00021917,2]
[327073507,1715779851191,-1572.91,0.00021917,2]
[327073508,1715779851204,-500.0,0.00021917,2]
[327073509,1715779851214,-1668.53,0.00021917,2]
[327073510,1715779851224,-500.0,0.00021917,2]
[327073511,1715779851233,-831.28,0.00021917,2]
[327073512,1715779851242,-1169.12,0.00021917,2]
[327073513,1715779851251,-500.0,0.00021917,2]
[327073514,1715779851260,-151.0,0.00021917,2]
[327073515,1715779851269,-500.0,0.00021917,2]
[327073516,1715779851279,-151.0,0.00021917,2]
[327073517,1715779851288,-200.494054,0.00021917,2]
[327073518,1715779851297,-5983.44,0.00021917,2]
[327073519,1715779851307,-3077.13,0.00021917,2]
[327073520,1715779851316,-909.4,0.00021917,2]
[327073521,1715779851325,-500.0,0.00021917,2]
[327073522,1715779851335,-500.0,0.00021917,2]
[327073523,1715779851344,-500.0,0.00021917,2]
[327073524,1715779851353,-502.6525241,0.00021917,2]
[327073525,1715779851362,-500.0,0.00021917,2]
[327073526,1715779851371,-857.68,0.00021917,2]
[327073527,1715779851381,-680.48,0.00021917,2]
[327073528,1715779851390,-500.0,0.00021917,2]
[327073529,1715779851399,-500.0,0.00021917,2]
[327073530,1715779851409,-500.0,0.00021917,2]
[327073531,1715779851418,-500.0,0.00021917,2]
[327073532,1715779851428,-500.0,0.00021917,2]
[327073533,1715779851437,-500.0,0.00021917,2]
[327073534,1715779851449,-500.0,0.00021917,2]
[327073535,1715779851458,-812.31,0.00021917,2]
[327073536,1715779851468,-500.0,0.00021917,2]
[327073537,1715779851477,-500.0,0.00021917,2]
[327073538,1715779851486,-500.0,0.00021917,2]